bitfinex/quotes_ETHUSD_20240713
["timestamp","ask_amount","ask_price","bid_price","bid_amount"]
[1720855247994,0.08963872,3144.9,3144.6,2.22603]
[1720855251417,0.08963872,3144.9,3144.7,2.28955549]
[1720855251608,0.08963872,3144.9,3144.8,4.45178]
[1720855252011,2.438,3145.4,3145.0,2.22575]
[1720855252012,3.246,3145.4,3145.0,2.22575]
[1720855252187,0.808,3145.4,3145.0,2.22575]
[1720855252520,0.33271176,3145.6,3145.0,0.06358842]
[1720855252725,2.438,3145.9,3145.0,0.06358842]
[1720855252726,0.808,3145.7,3145.4,2.22541]
[1720855256506,0.808,3145.5,3145.0,2.22572]
[1720855256714,0.808,3145.5,3145.2,2.22559]
[1720855257609,0.808,3145.5,3144.8,2.22584]
[1720855257850,0.08997251,3145.4,3144.8,5.22584]
[1720855258134,0.808,3145.5,3144.9,2.22581]
[1720855258291,0.808,3145.3,3144.9,5.22581]
[1720855261628,0.808,3145.3,3144.9,2.22581]
[1720855264731,0.808,3145.3,3144.7,3.0]
[1720855264910,0.808,3145.3,3144.1,7.41]
[1720855264911,0.808,3145.1,3144.5,3.0]
[1720855265113,3.0,3146.3,3144.1,9.63634]
[1720855265114,0.808,3144.9,3144.1,9.63634]
[1720855265313,2.4941,3144.8,3144.1,9.63634]
[1720855265941,2.4941,3144.8,3144.2,2.22631]
[1720855266126,2.4941,3144.8,3144.1,9.63638]
[1720855266717,2.4941,3144.8,3144.2,3.0]
[1720855267115,2.4941,3144.6,3144.1,7.41]
[1720855267344,2.4941,3144.6,3144.0,2.22642]
[1720855267825,2.4941,3144.6,3143.8,2.22659]
[1720855268210,0.808,3144.5,3143.8,2.22659]
[1720855268412,0.808,3144.5,3143.8,5.22659]
[1720855268612,0.808,3144.5,3143.8,2.22659]
[1720855268921,0.808,3144.5,3143.8,7.45312]
[1720855269429,0.808,3144.1,3143.1,7.41]
[1720855269746,0.33021,3144.1,3143.2,2.31731499]
[1720855269941,3.3021,3144.3,3143.4,2.22685]
[1720855270110,0.08904707,3144.0,3143.4,2.22685]
[1720855270309,2.4941,3145.1,3144.4,2.22614]
[1720855270515,0.33273908,3145.4,3144.4,2.22614]
[1720855270516,2.4941,3145.4,3144.6,2.22599]
[1720855270737,0.0864783,3145.0,3144.7,2.28953923]
[1720855270953,2.4941,3145.4,3144.7,2.22595]
[1720855271432,2.4941,3145.4,3144.6,2.22599]
[1720855271634,2.4941,3145.4,3144.6,4.45196]
[1720855271823,2.4941,3145.4,3144.7,2.22596]
[1720855272346,0.808,3145.3,3144.7,2.22596]
[1720855273061,0.808,3145.1,3144.3,3.0]
[1720855273220,3.3021,3144.9,3144.4,2.22617]
[1720855273546,0.08327711,3144.8,3144.4,2.22617]
[1720855273909,0.08327711,3144.8,3144.3,5.22624]
[1720855274265,3.3021,3144.9,3144.3,5.22624]
[1720855274762,2.4941,3144.9,3144.3,5.22624]
[1720855276037,3.3021,3144.9,3144.3,3.0]
[1720855276237,3.3021,3144.9,3144.2,2.22629]
[1720855286665,0.808,3144.7,3144.0,5.22646]
[1720855286830,0.808,3144.7,3144.0,2.22646]
[1720855286831,0.31122,3144.6,3144.0,2.22646]
[1720855287025,0.808,3144.7,3144.0,2.22646]
[1720855287443,2.3042,3144.6,3143.8,2.22654]
[1720855287643,0.808,3144.5,3143.9,2.22652]
[1720855287860,2.3042,3144.4,3143.6,2.22671]
[1720855288028,0.808,3144.1,3143.4,2.22682]
[1720855288229,0.08278725,3144.0,3143.4,2.22682]
[1720855288426,0.808,3144.1,3143.4,2.22682]
[1720855289543,2.3042,3144.2,3143.5,2.22676]
[1720855289755,2.3042,3144.2,3143.5,5.22676]
[1720855291133,2.3042,3144.2,3143.6,2.2267]
[1720855291333,2.3042,3144.2,3143.7,0.06361286]
[1720855292260,2.3042,3144.2,3143.7,2.29027286]
[1720855293092,2.3042,3144.2,3143.7,2.22666]
[1720855305505,2.3042,3144.2,3143.8,2.22659]
[1720855307014,2.4173,3144.4,3143.8,2.22659]
[1720855307384,0.08128478,3144.3,3143.8,2.22659]
[1720855308299,2.4173,3144.2,3143.8,2.22659]
[1720855308531,0.08121342,3144.1,3143.8,2.22659]
[1720855313651,0.08121342,3144.1,3143.6,4.45339]
[1720855313853,0.08121342,3144.1,3143.5,3.0]
[1720855314058,2.4173,3144.0,3143.6,3.0]
[1720855314361,2.4173,3144.0,3143.4,5.22685]
[1720855314516,2.4173,3144.0,3143.5,3.0]
[1720855314709,2.4173,3144.0,3143.4,2.22685]
[1720855316939,2.4173,3144.0,3143.4,4.45368]
[1720855317141,2.4173,3144.0,3143.5,3.0]
[1720855317382,2.4173,3144.0,3143.5,5.22679]
[1720855319055,2.4173,3144.0,3143.5,3.0]
[1720855319383,2.4173,3144.0,3143.4,2.22683]
[1720855319963,2.37708075,3144.0,3143.4,2.22683]
[1720855321092,2.37708075,3144.0,3143.3,3.0]
[1720855321388,0.808,3143.9,3143.2,2.22697]
[1720855321968,0.808,3143.9,3143.1,3.0]
[1720855321969,0.808,3143.9,3143.1,5.2271]
[1720855323073,2.4173,3143.8,3143.1,5.2271]
[1720855324455,2.4173,3143.8,3143.2,3.0]
[1720855324676,2.4173,3143.8,3143.1,2.2271]
[1720855325446,2.4173,3143.8,3143.1,4.45413]
[1720855325665,2.4173,3143.8,3143.2,3.0]
[1720855326181,2.4173,3143.8,3143.2,5.22702]
[1720855326758,2.4173,3143.8,3143.2,3.0]
[1720855326958,2.4173,3143.8,3143.3,2.22693]
[1720855327485,2.2516,3144.1,3143.4,2.22688]
[1720855327651,0.08100868,3144.0,3143.4,2.29049759]
[1720855328180,0.08100868,3144.0,3143.4,2.22688]
[1720855330455,0.08100641,3143.9,3143.4,2.22688]
[1720855330679,0.08100868,3144.0,3143.4,2.22688]
[1720855330979,0.08100641,3143.9,3143.4,2.22688]
[1720855331487,0.08100868,3144.0,3143.4,2.22688]
[1720855345587,2.4862,3143.9,3143.4,2.22688]
[1720855345986,0.08051809,3143.8,3143.4,2.22688]
[1720855346899,0.08051809,3143.8,3143.4,2.22579494]
[1720855348439,0.08051809,3143.8,3143.3,2.22693]
[1720855348635,0.08051809,3143.8,3143.2,3.0]
[1720855348636,2.4862,3143.7,3143.2,3.0]
[1720855348802,2.4862,3143.7,3143.1,2.22705]
[1720855352848,2.4862,3143.7,3143.1,2.29067299]
[1720855354241,2.4862,3143.7,3143.1,2.22705]
[1720855354423,2.4862,3143.7,3143.2,0.063623]
[1720855354608,2.4862,3143.7,3143.2,3.063623]
[1720855355013,2.4862,3143.7,3143.3,3.0]
[1720855355425,2.4862,3143.7,3143.2,5.290623]
[1720855356845,2.4862,3143.7,3143.2,5.227]
[1720855360373,2.4862,3143.7,3143.2,3.0]
[1720855360663,2.4862,3143.9,3143.5,4.45355]
[1720855360962,0.0779815,3143.8,3143.5,4.45355]
[1720855361620,0.0779815,3143.8,3143.6,2.22674]
[1720855362157,2.4862,3143.9,3143.6,2.22674]
[1720855364065,0.08100868,3144.0,3143.6,2.22674]
[1720855364421,0.07803366,3143.9,3143.6,2.22674]
[1720855365837,0.08100868,3144.0,3143.6,2.22674]
[1720855366231,0.07803366,3143.9,3143.6,2.22674]
[1720855366431,0.07803366,3143.9,3143.7,2.22667]
[1720855366651,0.08100868,3144.0,3143.7,2.22667]
[1720855380504,0.08100868,3144.0,3143.9,2.22653]
[1720855380781,0.08100868,3144.0,3143.9,6.75546]
[1720855381667,0.08100868,3144.0,3143.9,2.22653]
[1720855382264,0.08100868,3144.0,3143.8,3.0]
[1720855383054,0.08100868,3144.0,3143.7,2.22661]
[1720855385946,0.08100868,3144.0,3143.7,4.45324]
[1720855386150,0.08100868,3144.0,3143.8,3.0]
[1720855386349,0.08100868,3144.0,3143.7,2.22661]
[1720855387460,0.08100868,3144.0,3143.5,2.22676]
[1720855387652,0.08100868,3144.0,3143.7,2.22661]
[1720855387853,0.08100868,3144.0,3143.7,4.45322]
[1720855388103,0.08100868,3144.0,3143.8,3.0]
[1720855388461,0.08100868,3144.0,3143.7,2.22661]
[1720855393797,0.08100868,3144.0,3143.6,3.0]
[1720855394198,0.08100868,3144.0,3143.4,5.22687]
[1720855394379,2.3135,3143.9,3143.4,5.22687]
[1720855398271,2.3135,3143.9,3143.4,2.22687]
[1720855399182,2.3135,3143.9,3143.2,5.22699]
[1720855399369,3.1215,3143.9,3142.9,2.22719]
[1720855399571,3.1215,3143.9,3142.9,3.03519]
[1720855399910,2.3135,3143.9,3143.1,2.22708]
[1720855400074,2.3135,3143.9,3143.0,2.22717]
[1720855401200,2.3135,3143.9,3143.0,5.22717]
[1720855403722,2.3135,3143.9,3143.0,5.22711]
[1720855404427,2.3135,3143.9,3143.1,2.4925219]
[1720855404588,2.3135,3143.9,3143.1,7.7195919]
[1720855404942,2.3135,3143.9,3143.3,2.2269]
[1720855405228,0.07816331,3143.8,3143.3,2.2269]
[1720855405412,0.07816331,3143.8,3143.3,4.45381]
[1720855405587,2.3135,3143.9,3143.4,5.22688]
[1720855405926,0.07815388,3143.8,3143.4,2.22688]
[1720855406094,0.07815388,3143.8,3143.5,3.0]
[1720855406422,0.07815388,3143.8,3143.4,5.22688]
[1720855410287,2.3135,3143.9,3143.4,5.22688]
[1720855413515,2.3135,3143.9,3143.5,3.0]
[1720855413821,2.3135,3143.9,3143.4,2.22688]
[1720855419006,0.08100868,3144.0,3143.4,2.22688]
[1720855419428,0.08100868,3144.0,3143.4,5.22688]
[1720855420322,2.4733,3143.9,3143.6,2.22673]
[1720855420708,0.07819156,3143.8,3143.6,2.22673]
[1720855424833,0.07816764,3143.8,3143.6,2.22673]
[1720855441227,0.07816764,3143.8,3143.6,2.22668]
[1720855441461,0.08100868,3144.0,3143.7,2.29028256]
[1720855441668,0.08100868,3144.0,3143.9,2.22653]
[1720855452573,0.08100868,3144.0,3143.9,2.29013805]
[1720855454784,0.08100868,3144.0,3143.9,2.22653]
[1720855458704,0.08100868,3144.0,3143.9,2.29013806]
[1720855459081,0.08100868,3144.0,3143.9,2.22653]
[1720855459499,0.08100868,3144.0,3143.9,2.29013804]
[1720855459820,0.08100868,3144.0,3143.9,2.22653]
[1720855460176,0.08100868,3144.0,3143.9,4.45306]
[1720855460377,0.08100868,3144.0,3143.9,7.45306]
[1720855460619,0.08100868,3144.0,3143.9,9.75956]
[1720855462218,0.08100868,3144.0,3143.9,10.56756]
[1720855466931,0.08100868,3144.0,3143.9,9.75956]
[1720855471732,0.08100868,3144.0,3143.9,12.79409]
[1720855476323,0.08100868,3144.0,3143.9,10.48759]
[1720855479957,0.08100868,3144.0,3143.9,9.67959]
[1720855480453,2.45210868,3144.0,3143.9,9.67959]
[1720855481946,2.45210868,3144.0,3143.9,7.45306]
[1720855487262,2.45210868,3144.0,3143.9,5.22653]
[1720855487878,2.45210868,3144.0,3143.9,2.22653]
[1720855490003,2.45210868,3144.0,3143.8,3.0]
[1720855490220,2.45210868,3144.0,3143.7,2.22663]
[1720855493802,2.45210868,3144.0,3143.7,4.45324]
[1720855493964,2.45210868,3144.0,3143.8,3.0]
[1720855494162,2.45210868,3144.0,3143.8,5.22659]
[1720855497068,0.08100868,3144.0,3143.9,2.22653]
[1720855497379,0.08100868,3144.0,3143.9,4.51666683]
[1720855497602,0.08100868,3144.0,3143.9,7.51666683]
[1720855511618,0.08100868,3144.0,3143.9,9.74319683]
[1720855525869,0.08100868,3144.0,3143.9,11.96972683]
[1720855526022,0.808,3145.6,3145.1,2.22568]
[1720855526524,2.4115,3145.4,3145.1,2.22568]
[1720855526869,2.4115,3145.4,3145.2,2.2256]
[1720855527369,0.05789149,3145.3,3145.2,2.2256]
[1720855528169,2.4115,3145.4,3145.2,2.2256]
[1720855529777,0.808,3145.3,3145.2,2.2256]
[1720855530138,2.4115,3145.2,3144.8,2.22583]
[1720855530560,2.4115,3145.0,3144.8,4.45166]
[1720855531063,2.4115,3145.0,3144.8,2.22583]
[1720855532368,2.4115,3145.0,3144.6,5.226]
[1720855533968,2.4115,3145.0,3144.6,5.22474658]
[1720855535256,2.4115,3145.0,3144.6,2.99874658]
[1720855535451,0.808,3144.9,3144.6,2.99874658]
[1720855535654,2.4115,3144.8,3144.6,2.99874658]
[1720855535853,2.4115,3144.8,3144.4,2.22613]
[1720855537761,2.4115,3144.8,3144.4,4.45226]
[1720855537939,2.4115,3144.8,3144.5,3.0]
[1720855538141,2.4115,3144.8,3144.4,2.22613]
[1720855543557,2.4115,3144.8,3144.3,3.0]
[1720855543756,2.4115,3144.8,3144.2,2.22626]
[1720855543969,2.4115,3144.8,3144.3,2.22624]
[1720855544200,2.4115,3144.8,3144.3,5.22624]
[1720855544998,2.4115,3144.8,3144.4,3.0]
[1720855545161,2.4115,3144.8,3144.3,2.22624]
[1720855550280,2.4115,3144.8,3144.1,5.22634]
[1720855550481,0.808,3144.5,3144.0,7.41]
[1720855550679,2.3619,3144.4,3144.0,7.41]
[1720855551974,2.3619,3144.4,3144.1,3.0]
[1720855554626,2.3619,3144.8,3144.1,3.0]
[1720855555329,2.3619,3144.8,3144.1,3.8716066]
[1720855555534,2.3619,3144.8,3144.5,2.2261]
[1720855556194,2.3619,3144.8,3144.3,5.2262]
[1720855556639,2.3619,3144.8,3144.3,2.2262]
[1720855557415,2.3619,3144.8,3144.2,3.0]
[1720855558322,2.3619,3144.8,3144.2,5.22631]
[1720855562435,3.1699,3144.8,3144.2,5.22631]
[1720855563239,2.3619,3144.7,3144.2,5.22631]
[1720855565628,2.3619,3144.7,3144.2,2.22631]
[1720855569442,2.3619,3144.7,3144.0,5.22641]
[1720855570140,2.3619,3144.7,3144.1,2.22638]
[1720855572307,2.3619,3144.7,3144.0,3.0]
[1720855572520,2.67889,3144.7,3143.9,2.2265]
[1720855572708,0.808,3144.6,3143.9,2.2265]
[1720855572931,2.3971,3144.5,3143.9,2.2265]
[1720855575736,2.3971,3144.5,3143.8,3.0]
[1720855575939,2.749309,3144.5,3143.7,7.45322]
[1720855576153,2.749309,3144.5,3143.7,7.45323]
[1720855577474,2.749309,3144.5,3143.8,2.22657]
[1720855577770,2.749309,3144.5,3143.8,5.22657]
[1720855579363,2.3971,3144.5,3143.8,5.22657]
[1720855580131,0.808,3144.6,3144.5,2.2261]
[1720855580395,0.33272118,3145.5,3144.7,2.22594]
[1720855580664,2.3971,3145.4,3144.8,0.06358705]
[1720855581366,2.3971,3145.4,3144.9,2.22581]
[1720855584954,3.2051,3145.4,3144.9,2.22581]
[1720855585183,0.04528335,3145.3,3144.9,2.22581]
[1720855595260,0.04528335,3145.3,3144.7,4.51543707]
[1720855595484,3.2051,3145.4,3144.8,0.55]
[1720855596608,0.808,3145.2,3144.6,3.0]
[1720855596805,0.808,3145.2,3144.4,5.22616]
[1720855597867,0.808,3145.2,3144.5,2.2261]
[1720855598174,0.808,3145.2,3144.5,5.2261]
[1720855599493,0.808,3145.2,3144.5,2.2261]
[1720855601394,2.4234,3145.1,3144.5,2.2261]
[1720855602980,2.4234,3145.8,3144.7,3.03391]
[1720855603180,3.2314,3145.8,3144.8,5.83941818]
[1720855603421,0.808,3145.6,3144.8,5.83941818]
[1720855604214,0.808,3145.6,3144.9,2.22581]
[1720855605381,0.808,3145.6,3144.9,2.28939737]
[1720855605592,0.04263485,3145.5,3144.9,2.28939737]
[1720855605990,0.04263485,3145.5,3145.0,2.837]
[1720855606190,3.1044,3146.1,3145.4,2.22547]
[1720855606438,0.04292542,3146.0,3145.4,2.22547]
[1720855606920,0.04292542,3146.0,3145.5,2.28891764]
[1720855607149,0.04292542,3146.0,3145.5,5.28891764]
[1720855607537,3.1044,3146.1,3145.5,5.28891764]
[1720855607713,0.04287334,3145.9,3145.5,5.28891764]
[1720855608004,0.04282126,3145.8,3145.5,5.28891764]
[1720855608209,3.1044,3146.1,3145.5,5.28891764]
[1720855608401,0.04276918,3145.7,3145.5,5.28891764]
[1720855608625,2.2964,3146.1,3145.5,5.28891764]
[1720855608812,2.2964,3146.1,3145.6,2.22532]
[1720855609122,0.04292542,3146.0,3145.6,2.22532]
[1720855610745,0.04292542,3146.0,3145.5,3.0]
[1720855610938,0.808,3145.9,3145.4,2.22547]
[1720855611329,0.04282126,3145.8,3145.4,2.22547]
[1720855611514,0.808,3145.9,3145.4,2.22547]
[1720855611715,0.04276918,3145.7,3145.4,2.22547]
[1720855611946,0.04282126,3145.8,3145.4,2.22547]
[1720855612251,0.808,3145.9,3145.4,2.22547]
[1720855612712,0.808,3145.7,3145.4,2.22547]
[1720855614248,0.808,3145.7,3145.3,3.0]
[1720855614555,0.808,3145.7,3145.1,3.0]
[1720855615048,2.2964,3145.6,3145.1,3.0]
[1720855615254,0.808,3145.5,3145.1,3.0]
[1720855615436,1.11844,3145.5,3145.0,3.0]
[1720855615752,0.808,3145.5,3145.0,3.0]
[1720855616118,0.808,3145.3,3145.0,3.0]
[1720855616627,0.808,3145.5,3144.9,5.22581]
[1720855619661,0.808,3145.5,3144.9,3.0]
[1720855619837,0.808,3145.5,3144.8,2.22588]
[1720855622752,0.808,3145.3,3144.8,2.22588]
[1720855625847,0.808,3145.5,3144.8,2.22588]
[1720855631885,0.808,3145.5,3144.9,0.55]
[1720855632059,0.808,3145.5,3144.9,3.55]
[1720855634397,2.2964,3145.6,3144.9,5.7758]
[1720855634688,2.3722,3146.2,3145.3,2.22551]
[1720855634899,0.33270399,3146.3,3145.7,2.2252]
[1720855635117,0.808,3146.5,3145.8,0.06356951]
[1720855635258,2.3722,3146.7,3145.8,0.06356951]
[1720855635459,0.33266405,3147.1,3146.1,2.22496]
[1720855635460,0.808,3146.8,3146.1,2.22496]
[1720855635655,2.70486405,3147.1,3146.3,2.22481]
[1720855635853,0.808,3147.0,3146.4,2.22474]
[1720855636100,0.808,3147.0,3146.5,2.22462]
[1720855636255,2.3722,3147.7,3146.6,0.55]
[1720855636457,0.808,3147.1,3146.6,2.77461]
[1720855636954,0.27048249,3147.6,3146.7,2.28808335]
[1720855637155,0.808,3147.4,3146.9,2.2244]
[1720855638789,0.808,3147.2,3146.9,2.2244]
[1720855639189,0.0403525,3147.1,3146.9,2.2244]
[1720855639676,0.808,3147.2,3146.9,2.2244]
[1720855639879,0.04030046,3147.0,3146.9,2.2244]
[1720855640058,0.808,3147.2,3146.9,2.7744]
[1720855640379,0.808,3147.2,3146.9,2.2244]
[1720855640860,0.04032429,3147.1,3146.9,2.2244]
[1720855641313,0.808,3147.2,3147.0,2.22427]
[1720855641493,0.808,3147.2,3146.4,5.22473]
[1720855641494,0.33262489,3147.8,3147.4,2.22403]
[1720855641803,0.808,3148.1,3147.4,2.22403]
[1720855642017,0.808,3148.1,3147.5,0.55]
[1720855642324,0.84587192,3148.0,3147.5,3.55]
[1720855642612,0.84587192,3148.0,3147.5,3.0]
[1720855642613,0.03787192,3148.0,3147.5,3.0]
[1720855642816,0.03787192,3148.0,3147.4,2.22403]
[1720855643101,0.03766634,3147.9,3147.4,2.22403]
[1720855643467,0.3325745,3148.5,3147.4,2.22403]
[1720855643888,0.03792643,3148.4,3147.4,2.22403]
[1720855645495,0.03792643,3148.4,3147.5,0.55]
[1720855645697,0.03792643,3148.4,3147.5,3.55]
[1720855648632,0.03792643,3148.4,3147.8,2.22375]
[1720855648815,0.3325745,3148.5,3148.0,2.22357]
[1720855649015,0.00574394,3148.9,3148.0,2.22357]
[1720855649218,0.00574394,3148.9,3148.1,0.55]
[1720855649431,0.03568894,3148.8,3148.3,2.22341]
[1720855649636,0.03568894,3148.8,3148.4,0.55]
[1720855652645,0.03568894,3148.8,3148.0,5.22361]
[1720855652803,0.03568894,3148.8,3148.1,0.55]
[1720855653002,0.03568894,3148.8,3148.1,3.55]
[1720855653855,0.03568894,3148.8,3148.1,5.77355]
[1720855654571,0.03568894,3148.8,3148.1,5.83706819]
[1720855658624,0.03568894,3148.8,3148.2,2.22349]
[1720855658828,0.03568894,3148.8,3148.3,0.55]
[1720855659460,0.03568894,3148.8,3148.4,0.06351816]
[1720855659992,0.03568894,3148.8,3148.5,0.55]
[1720855660120,0.03568894,3148.8,3148.6,0.06351236]
[1720855660325,0.03568894,3148.8,3148.7,0.55]
[1720855660652,0.03568894,3148.8,3148.6,2.2232]
[1720855660829,0.03568894,3148.8,3148.7,0.55]
[1720855662371,0.03568894,3148.8,3148.5,0.55]
[1720855662929,0.00574394,3148.9,3148.5,0.55]
[1720855667302,0.00574394,3148.9,3148.3,0.55]
[1720855667604,0.00574394,3148.9,3148.3,2.77341]
[1720855668700,0.81274394,3148.9,3148.3,2.77341]
[1720855671998,0.807,3148.7,3148.3,2.77341]
[1720855673072,0.00574394,3148.9,3148.3,2.77341]
[1720855673383,0.81274394,3148.9,3148.3,2.77341]
[1720855674570,0.81274394,3148.9,3148.3,0.55]
[1720855674769,0.81274394,3148.9,3148.2,0.55]
[1720855675671,0.81274394,3148.9,3148.2,2.77349]
[1720855676101,0.00574394,3148.9,3148.2,2.77349]
[1720855676619,0.807,3148.8,3148.2,2.77349]
[1720855677892,0.00574394,3148.9,3148.2,2.77349]
[1720855678610,2.3218,3148.8,3148.2,2.77349]
[1720855679603,3.1288,3148.8,3148.2,2.77349]
[1720855682336,3.1288,3148.8,3148.2,0.55]
[1720855688185,0.807,3148.6,3148.2,0.55]
[1720855688935,0.807,3148.6,3148.1,0.55]
[1720855693944,3.1288,3148.8,3148.1,0.55]
[1720855701347,0.807,3148.6,3148.1,0.55]
[1720855701731,3.1288,3148.8,3148.1,0.55]
[1720855702850,0.807,3148.6,3148.1,0.55]
[1720855705643,2.3218,3148.8,3148.1,0.55]
[1720855705873,0.807,3148.6,3148.1,0.55]
[1720855706975,0.807,3148.7,3148.1,0.55]
[1720855708978,2.3218,3148.8,3148.1,0.55]
[1720855709181,0.807,3148.7,3148.1,0.55]
[1720855714276,2.3218,3148.8,3148.1,0.55]
[1720855714454,0.807,3148.7,3148.1,0.55]
[1720855715391,0.00574394,3148.9,3148.2,2.28699968]
[1720855715594,0.00574394,3148.9,3148.3,0.55]
[1720855715949,0.00574394,3148.9,3148.3,3.55]
[1720855716350,0.00574394,3148.9,3148.3,5.7734]
[1720855718574,0.807,3148.8,3148.3,5.7734]
[1720855719181,0.03539595,3148.7,3148.3,5.7734]
[1720855719389,0.807,3148.8,3148.3,5.7734]
[1720855719593,0.03534395,3148.6,3148.3,5.7734]
[1720855719811,0.807,3148.8,3148.3,5.7734]
[1720855720235,0.03539595,3148.7,3148.3,5.7734]
[1720855720593,0.807,3148.8,3148.3,5.7734]
[1720855720795,0.03534395,3148.6,3148.3,5.7734]
[1720855720988,0.807,3148.8,3148.3,5.7734]
[1720855721200,0.03529194,3148.5,3148.3,5.7734]
[1720855721532,0.03523994,3148.4,3148.3,5.7734]
[1720855721842,0.807,3148.8,3148.4,2.22334]
[1720855722127,0.807,3148.8,3148.5,0.55]
[1720855722838,0.03539595,3148.7,3148.5,0.55]
[1720855723190,0.807,3148.8,3148.5,0.55]
[1720855723409,0.03534395,3148.6,3148.5,0.55]
[1720855723622,0.807,3148.8,3148.5,0.55]
[1720855724241,0.03539595,3148.7,3148.5,0.55]
[1720855724591,0.807,3148.8,3148.5,0.55]
[1720855724788,0.03534395,3148.6,3148.5,0.55]
[1720855724993,0.00574394,3148.9,3148.5,0.55]
[1720855726139,0.81274394,3148.9,3148.5,0.55]
[1720855726340,0.00574394,3148.9,3148.8,2.22306]
[1720855726545,0.00574394,3148.9,3148.8,10.36931999]
[1720855728403,0.00574394,3148.9,3148.8,10.30582]
[1720855734033,0.00574394,3148.9,3148.8,8.08276]
[1720855734237,0.00574394,3148.9,3148.8,10.30582]
[1720855736654,0.00574394,3148.9,3148.8,3.0]
[1720855736811,0.00574394,3148.9,3148.6,5.22316]
[1720855737140,0.03910873,3148.9,3148.7,3.0]
[1720855737343,0.00574394,3148.9,3148.6,4.44632]
[1720855737531,0.00574394,3148.9,3148.7,3.0]
[1720855738246,0.00574394,3148.9,3148.8,0.55]
[1720855738910,0.03914179,3148.9,3148.8,0.55]
[1720855743454,0.00574394,3148.9,3148.8,0.55]
[1720855743858,0.03896889,3148.9,3148.8,0.55]
[1720855744038,0.00574394,3148.9,3148.8,0.55]
[1720855744242,0.03896889,3148.9,3148.8,0.55]
[1720855744775,0.03896889,3148.9,3148.8,5.05962349]
[1720855745067,0.00574394,3148.9,3148.8,8.05962349]
[1720855746367,0.00574394,3148.9,3148.8,10.50182349]
[1720855747368,0.00574394,3148.9,3148.8,12.66138]
[1720855747746,0.00574394,3148.9,3148.8,10.43832]
[1720855751075,0.00574394,3148.9,3148.8,5.77306]
[1720855752771,0.00574394,3148.9,3148.8,5.83656357]
[1720855753763,0.00574394,3148.9,3148.8,5.77306]
[1720855754142,0.00574394,3148.9,3148.8,7.99612]
[1720855758412,0.00574394,3148.9,3148.8,10.43832]
[1720855760163,0.00574394,3148.9,3148.8,12.66138]
[1720855769401,0.00574394,3148.9,3148.8,7.99612]
[1720855769609,0.00574394,3148.9,3148.8,2.22306]
[1720855770031,0.03635818,3148.9,3148.8,4.44612]
[1720855770374,0.00574394,3148.9,3148.8,4.44612]
[1720855770686,0.00574394,3148.9,3148.8,2.22306]
[1720855771086,0.00574394,3148.9,3148.6,2.22318]
[1720855771502,0.00574394,3148.9,3148.7,2.22312]
[1720855773122,0.00574394,3148.9,3148.8,0.55]
[1720855773332,0.00574394,3148.9,3148.8,3.55]
[1720855774231,0.00574394,3148.9,3148.8,3.0]
[1720855774437,0.00574394,3148.9,3148.5,3.0]
[1720855774655,0.03630276,3148.9,3148.4,2.22331]
[1720855774821,0.00574394,3148.9,3148.4,2.22331]
[1720855775925,0.00574394,3148.9,3148.5,0.55]
[1720855776607,0.00574394,3148.9,3148.5,3.55]
[1720855777406,2.2803,3148.8,3148.5,3.55]
[1720855784248,2.50890439,3148.8,3148.5,0.55]
[1720855784570,2.50890439,3148.8,3148.2,2.22346]
[1720855784771,2.50890439,3148.8,3148.3,0.55]
[1720855784938,0.807,3148.7,3148.3,0.55]
[1720855786748,0.807,3148.7,3148.3,3.55]
[1720855791771,2.3285,3148.6,3148.3,3.0]
[1720855791978,2.3285,3148.6,3148.1,3.0]
[1720855792644,2.3285,3148.6,3147.9,5.22369]
[1720855792845,2.3285,3148.6,3148.0,0.55]
[1720855793080,2.3285,3148.6,3148.0,3.55]
[1720855796583,2.3285,3148.6,3148.0,5.77362]
[1720855797392,2.3285,3148.6,3148.3,2.22341]
[1720855799464,2.3285,3148.6,3148.3,4.44679]
[1720855799703,2.3285,3148.6,3148.4,5.22334]
[1720855799906,2.3285,3148.6,3148.4,2.22334]
[1720855800107,2.3285,3148.6,3148.4,5.22334]
[1720855800108,0.0279262,3148.5,3148.4,5.22334]
[1720855800270,0.0279262,3148.5,3148.4,5.77334]
[1720855804738,0.0279262,3148.5,3148.4,5.83685404]
[1720855805092,0.0279262,3148.5,3148.4,5.77334]
[1720855805459,0.0279262,3148.5,3148.4,5.83685412]
[1720855806023,0.0279262,3148.5,3148.4,5.77334]
[1720855808831,0.0279262,3148.5,3148.4,5.83685373]
[1720855809128,0.0279262,3148.5,3148.4,5.77334]
[1720855810201,2.3243262,3148.5,3148.4,3.0]
[1720855810404,2.3243262,3148.5,3148.3,2.22341]
[1720855810637,2.3243262,3148.5,3148.4,3.0]
[1720855811039,2.3243262,3148.5,3148.2,0.55]
[1720855811234,2.3243262,3148.5,3148.1,0.55]
[1720855811640,0.0279262,3148.5,3148.1,2.8207]
[1720855811809,0.0279262,3148.5,3148.2,3.06351566]
[1720855812008,0.0279262,3148.5,3148.3,0.55]
[1720855816631,0.0279262,3148.5,3148.2,0.55]
[1720855817630,2.30214394,3148.9,3148.2,0.55]
[1720855818720,2.30214394,3148.9,3148.3,0.06351547]
[1720855819268,2.30214394,3148.9,3148.2,0.61351545]
[1720855819431,2.30214394,3148.9,3148.2,0.55]
[1720855820258,2.30214394,3148.9,3148.3,0.06351549]
[1720855820619,2.30214394,3148.9,3148.2,0.61351538]
[1720855821117,2.30214394,3148.9,3148.3,0.06351548]